bitfinex/quotes_SOLUSD_20220103
["timestamp","ask_amount","ask_price","bid_price","bid_amount"]
[1641232001118,35.78523787,171.21,171.09,41.878]
[1641232001424,36.28523787,171.21,171.09,41.878]
[1641232001616,36.02523787,171.21,171.09,41.878]
[1641232002219,36.02523787,171.21,171.09,41.618]
[1641232002421,44.42523787,171.21,171.09,10.0452]
[1641232002620,44.42523787,171.21,171.09,18.4452]
[1641232002621,36.02523787,171.21,171.09,18.4452]
[1641232003856,36.28523787,171.21,171.09,18.7052]
[1641232004656,36.28523787,171.21,171.09,8.66]
[1641232004854,36.28523787,171.21,171.08,11.50175249]
[1641232004855,44.68523787,171.21,171.08,11.50175249]
[1641232005065,46.33030922,171.21,171.08,2.73475249]
[1641232005663,1.64507135,171.2,171.08,2.73475249]
[1641232005868,23.86779158,171.14,171.06,32.604]
[1641232006062,47.51399158,171.14,171.05,85.1375]
[1641232006267,47.51399158,171.14,171.01,1.2364]
[1641232006464,47.77399158,171.14,171.01,1.2364]
[1641232006763,48.27399158,171.14,171.01,1.2364]
[1641232006963,8.7691,171.13,171.02,11.80925784]
[1641232007163,47.51399158,171.14,171.02,11.80925784]
[1641232007563,1.3233,171.13,171.03,23.3169]
[1641232007963,1.5833,171.13,171.03,23.5769]
[1641232008163,1.3233,171.13,171.03,24.8058]
[1641232008763,1.3233,171.13,171.06,8.7679]
[1641232008965,1.3233,171.13,171.07,2.39663023]
[1641232009464,1.3233,171.13,171.07,2.65663023]
[1641232009664,47.51399158,171.14,171.07,2.65663023]
[1641232010265,56.28209158,171.14,171.07,2.65663023]
[1641232013264,56.28209158,171.14,171.07,0.26]
[1641232013466,56.28209158,171.14,171.04,8.7686]
[1641232013966,56.28209158,171.14,171.04,9.0286]
[1641232014465,56.28209158,171.14,171.05,2.51810195]
[1641232014894,56.28209158,171.14,171.05,2.77810195]
[1641232016466,1.3403,171.16,171.05,11.54640195]
[1641232016666,26.28317135,171.17,171.06,8.4]
[1641232017067,26.28317135,171.17,171.06,8.66]
[1641232017267,26.28317135,171.17,171.08,2.95472459]
[1641232017467,26.28317135,171.17,171.1,8.7656]
[1641232017866,26.78317135,171.17,171.1,9.0256]
[1641232018269,25.1381,171.17,171.1,9.0256]
[1641232018676,25.1381,171.17,171.1,0.26]
[1641232018872,25.3981,171.17,171.06,8.4]
[1641232019169,25.1381,171.17,171.06,8.66]
[1641232019570,26.6648,171.17,171.06,8.66]
[1641232019773,35.4315,171.17,171.06,0.26]
[1641232019971,35.4315,171.17,171.05,11.39993004]
[1641232020170,37.07657135,171.17,171.05,11.39993004]
[1641232021273,37.07657135,171.17,171.07,8.7676]
[1641232021673,37.07657135,171.17,171.05,2.63133004]
[1641232021871,35.4315,171.17,171.06,0.26]
[1641232022073,35.4315,171.17,171.05,2.63133004]
[1641232022674,37.07657135,171.17,171.05,2.63133004]
[1641232023472,37.07657135,171.17,171.05,11.39953004]
[1641232025878,40.12663761,171.17,171.05,11.39953004]
[1641232026279,37.07657135,171.17,171.06,22.6067]
[1641232026480,37.07657135,171.17,171.06,31.6345]
[1641232026783,35.4315,171.17,171.06,31.6345]
[1641232026980,35.4315,171.17,171.07,1.3264]
[1641232027181,35.4315,171.17,171.08,2.22939031]
[1641232027679,35.4315,171.17,171.08,2.48939031]
[1641232029900,35.4315,171.17,171.08,0.26]
[1641232030105,35.4315,171.17,171.06,22.8667]
[1641232030603,37.07657135,171.17,171.06,0.26]
[1641232030804,36.81657135,171.17,171.07,2.68614976]
[1641232031006,26.28317135,171.17,171.07,2.94614976]
[1641232031203,1.64507135,171.17,171.07,2.94614976]
[1641232031604,1.64507135,171.17,171.08,9.7279]
[1641232031806,1.64507135,171.17,171.13,2.31573182]
[1641232032004,1.64507135,171.17,171.13,8.36673182]
[1641232032205,1.64507135,171.17,171.13,6.051]
[1641232032404,26.34292995,171.18,171.13,5.791]
[1641232032704,26.34292995,171.18,171.08,9.7279]
[1641232033005,24.1993,171.17,171.08,1.3279]
[1641232033204,25.62599368,171.17,171.09,2.29914691]
[1641232033906,25.62599368,171.17,171.09,2.55914691]
[1641232034409,8.7679,171.14,171.09,2.55914691]
[1641232034607,25.62599368,171.17,171.09,2.55914691]
[1641232035108,1.42669368,171.16,171.09,0.26]
[1641232035507,1.42669368,171.16,171.08,1.5879]
[1641232036007,1.42669368,171.16,171.08,3.21553129]
[1641232036407,8.7679,171.14,171.08,3.21553129]
[1641232038814,8.7679,171.14,171.08,5.53151729]
[1641232039517,8.7673,171.15,171.08,5.53151729]
[1641232039714,8.7673,171.15,171.08,5.27151729]
[1641232041616,8.7673,171.15,171.08,14.03871729]
[1641232041818,8.7667,171.16,171.08,14.03871729]
[1641232042019,8.7667,171.16,171.08,14.29871729]
[1641232042617,8.7667,171.16,171.08,15.63451729]
[1641232043217,8.7667,171.16,171.08,3.911786]
[1641232044221,1.64507135,171.2,171.08,3.911786]
[1641232044424,1.64507135,171.2,171.09,8.4]
[1641232044622,1.64507135,171.2,171.09,8.66]
[1641232044821,23.5876,171.22,171.09,8.66]
[1641232045022,1.26484996,171.21,171.11,2.20047453]
[1641232045222,28.112529,171.21,171.12,8.4]
[1641232045521,36.877029,171.21,171.12,8.66]
[1641232045925,36.877029,171.21,171.1,25.2562]
[1641232046123,36.877029,171.21,171.1,23.9748]
[1641232046124,38.185329,171.21,171.1,23.9748]
[1641232046524,38.685329,171.21,171.1,26.49495526]
[1641232046725,8.7675,171.16,171.1,2.52015526]
[1641232046926,22.7954,171.2,171.1,2.52015526]
[1641232047330,23.2954,171.2,171.09,8.4]
[1641232047527,29.2273,171.18,171.08,3.627186]
[1641232047727,24.7769,171.17,171.08,3.627186]
[1641232047933,8.7682,171.14,171.08,3.627186]
[1641232048328,30.80251329,171.14,171.09,2.75103498]
[1641232049127,30.80251329,171.14,171.09,3.01103498]
[1641232050232,30.80251329,171.14,171.09,0.26]
[1641232050532,39.57061329,171.14,171.06,1.4924]
[1641232051333,39.57061329,171.14,171.07,2.23908454]
[1641232051533,39.57061329,171.14,171.07,2.49908454]
[1641232052434,39.57061329,171.14,171.07,11.26678454]
[1641232052832,30.80251329,171.14,171.07,9.0277]
[1641232053035,30.80251329,171.14,171.07,0.26]
[1641232053433,30.80251329,171.14,171.06,24.8654]
[1641232053835,30.80251329,171.14,171.06,4.07215139]
[1641232054334,39.57051329,171.14,171.06,4.07215139]
[1641232055438,39.57051329,171.14,171.06,12.84025139]
[1641232058044,39.57051329,171.14,171.06,1.4924]
[1641232058643,39.57051329,171.14,171.06,1.2324]
[1641232059644,39.83051329,171.14,171.06,1.2324]
[1641232060247,39.83051329,171.14,171.06,1.4924]
[1641232061945,39.57051329,171.14,171.06,1.4924]
[1641232062145,8.768,171.14,171.06,1.4924]
[1641232062350,8.7679,171.16,171.06,9.8924]
[1641232062549,0.5,171.17,171.06,9.8924]
[1641232062750,0.5,171.17,171.07,25.0907]
[1641232062947,1.7662,171.2,171.09,8.7663]
[1641232063146,26.02032378,171.19,171.11,2.99023006]
[1641232063346,26.52032378,171.19,171.11,2.99023006]
[1641232063549,26.52032378,171.19,171.11,3.25023006]
[1641232063775,34.78632378,171.19,171.11,3.25023006]
[1641232063971,26.02032378,171.19,171.11,4.51293006]
[1641232064171,26.02032378,171.19,171.11,13.27843006]
[1641232066971,1.42669368,171.24,171.11,21.67843006]
[1641232067172,54.0267,171.28,171.12,23.4696]
[1641232067375,28.07309368,171.28,171.13,8.4]
[1641232067671,28.07309368,171.28,171.13,8.66]
[1641232067874,28.07309368,171.28,171.14,23.6785]
[1641232068073,31.2761876,171.27,171.14,32.3385]
[1641232068272,8.7628,171.25,171.17,11.04759776]
[1641232068672,8.7628,171.25,171.17,11.30759776]
[1641232068873,8.7628,171.25,171.17,0.26]
[1641232069076,23.1378,171.24,171.17,0.26]
[1641232069276,23.1378,171.24,171.15,1.621]
[1641232070676,31.9014,171.24,171.15,1.621]
[1641232070879,31.9014,171.24,171.15,0.26]
[1641232071189,33.32809368,171.24,171.14,23.9385]
[1641232071478,33.32809368,171.24,171.14,26.57189146]
[1641232072486,31.9014,171.24,171.14,26.57189146]
[1641232073479,31.9014,171.24,171.14,35.33589146]
[1641232076082,23.1378,171.24,171.14,35.33589146]
[1641232077784,31.9013,171.24,171.14,35.33589146]
[1641232078887,32.4013,171.24,171.14,35.33589146]
[1641232079286,32.6613,171.24,171.14,2.89339146]
[1641232081288,38.76092176,171.24,171.13,1.2652]
[1641232081489,40.18761544,171.24,171.13,0.26]
[1641232081892,40.18761544,171.24,171.12,22.5752]
[1641232082290,8.7664,171.19,171.13,2.24194542]
[1641232082490,24.73263249,171.18,171.13,2.24194542]
[1641232083291,22.81,171.22,171.13,2.24194542]
[1641232083490,23.07,171.22,171.13,2.50194542]
[1641232084090,8.7654,171.21,171.13,2.50194542]
[1641232084290,35.27824981,171.21,171.13,2.50194542]
[1641232085391,26.51284981,171.21,171.13,11.26644542]
[1641232089312,26.51284981,171.21,171.13,11.00644542]
[1641232090524,26.51284981,171.21,171.13,11.26644542]
[1641232091426,26.51284981,171.21,171.14,8.4]
[1641232091625,26.51284981,171.21,171.14,17.1642]
[1641232091826,26.51284981,171.21,171.14,9.0242]
[1641232094128,26.51284981,171.21,171.15,8.4]
[1641232094527,26.51284981,171.21,171.15,8.66]
[1641232094728,26.51284981,171.21,171.15,17.4235]
[1641232095129,26.51284981,171.21,171.15,9.0235]
[1641232095530,26.51284981,171.21,171.15,0.26]
[1641232095732,26.51284981,171.21,171.13,3.19321883]
[1641232096533,26.51284981,171.21,171.14,8.7641]
[1641232096932,26.51284981,171.21,171.14,9.0241]
[1641232099533,31.6939,171.23,171.14,9.0241]
[1641232099735,31.6939,171.23,171.14,33.4122]
[1641232100435,31.6939,171.23,171.14,34.724]
[1641232101539,22.93,171.23,171.14,34.724]
[1641232102139,31.23960893,171.25,171.14,34.724]
[1641232102340,1.3257,171.26,171.18,8.762]
[1641232102542,10.11532387,171.27,171.19,2.9375837]
[1641232102938,10.11532387,171.27,171.19,3.1975837]
[1641232103337,31.74893741,171.26,171.19,3.1975837]
[1641232104539,31.74893741,171.26,171.19,11.9592837]
[1641232105139,31.74893741,171.26,171.19,9.0217]
[1641232105741,31.74893741,171.26,171.19,11.337686]
[1641232106142,31.74893741,171.26,171.2,2.35855317]
[1641232106340,1.35312387,171.27,171.22,8.7601]
[1641232106540,1.35312387,171.27,171.22,9.0201]
[1641232107342,31.31033965,171.27,171.22,9.0201]
[1641232108543,31.31033965,171.27,171.22,0.26]
[1641232108942,31.31033965,171.27,171.21,9.0206]
[1641232109345,29.95721578,171.27,171.21,9.0206]
[1641232110548,0.98795761,171.29,171.21,9.0206]
[1641232110748,0.98795761,171.29,171.21,32.4236]
[1641232111248,0.98795761,171.29,171.25,8.7584]
[1641232111447,53.26131049,171.3,171.25,8.7584]
[1641232111648,53.26131049,171.3,171.25,9.0184]
[1641232114551,53.26131049,171.3,171.25,8.7584]
[1641232114754,53.26131049,171.3,171.23,33.2132]
[1641232114952,53.26131049,171.3,171.23,10.0169]
[1641232115552,53.26131049,171.3,171.23,1.2576]
[1641232116285,53.26131049,171.3,171.23,1.5176]
[1641232116487,53.26131049,171.3,171.23,1.2576]
[1641232116686,53.26131049,171.3,171.22,17.1597]
[1641232116889,62.02171049,171.3,171.22,17.1597]
[1641232117087,62.02171049,171.3,171.22,8.4]
[1641232117789,62.02171049,171.3,171.21,1.3396]
[1641232118391,62.02171049,171.3,171.21,10.1002]
[1641232119496,62.02171049,171.3,171.21,10.3602]
[1641232121395,62.02171049,171.3,171.21,1.5996]
[1641232122196,62.02171049,171.3,171.17,24.9746]
[1641232122396,1.42669368,171.29,171.15,1.2658]
[1641232122596,1.68669368,171.29,171.15,24.7466]
[1641232122796,2.18669368,171.29,171.15,24.7466]
[1641232123198,53.4995,171.28,171.16,2.37689554]
[1641232123397,53.9995,171.28,171.16,2.37689554]
[1641232123597,28.85074273,171.22,171.16,2.63689554]
[1641232125608,28.85074273,171.22,171.16,11.40009554]
[1641232131635,28.85074273,171.22,171.16,2.63689554]
[1641232131835,28.85074273,171.22,171.16,0.26]
[1641232132034,28.85074273,171.22,171.15,33.7703]
[1641232132437,28.85074273,171.22,171.15,25.0066]
[1641232132838,51.68394273,171.22,171.15,24.7466]
[1641232133039,51.68394273,171.22,171.13,8.4]
[1641232133239,51.68394273,171.22,171.1,1.3631]
[1641232133240,51.94394273,171.22,171.1,1.3631]
[1641232133438,52.44394273,171.22,171.1,1.3631]
[1641232133641,61.20844273,171.22,171.1,1.3631]
[1641232134136,1.2323,171.21,171.1,1.3631]
[1641232134338,1.2323,171.21,171.11,2.14762513]
[1641232134537,1.4923,171.21,171.11,2.40762513]
[1641232134938,1.4923,171.21,171.11,2.14762513]
[1641232135436,8.7665,171.18,171.11,2.14762513]
[1641232135841,8.7665,171.18,171.1,10.1294]
[1641232136438,8.7665,171.18,171.1,10.3894]
[1641232136839,8.7657,171.2,171.1,10.3894]
[1641232137040,8.7657,171.2,171.11,26.17253496]
[1641232137242,8.7657,171.2,171.12,8.765]
[1641232137642,31.774,171.2,171.12,9.025]
[1641232138440,31.774,171.2,171.12,0.26]
[1641232138641,31.774,171.2,171.11,26.43253496]
[1641232140546,31.774,171.2,171.11,35.19823496]
[1641232140948,31.774,171.2,171.11,26.43253496]
[1641232141745,31.774,171.2,171.11,3.18243496]
[1641232143446,31.774,171.2,171.11,11.94813496]
[1641232144245,31.774,171.2,171.1,1.23]
[1641232144246,31.774,171.2,171.08,22.8006]
[1641232144446,40.934,171.2,171.07,8.7674]
[1641232144648,8.7692,171.13,171.05,25.1605]
[1641232144852,25.0469,171.19,171.05,1.3255]
[1641232145052,0.26,171.13,171.05,1.3255]
[1641232145349,0.26,171.13,171.06,2.26245885]
[1641232145550,29.2307,171.17,171.06,2.26245885]
[1641232145849,31.72438551,171.13,171.06,2.26245885]
[1641232146052,31.98438551,171.13,171.06,2.26245885]
[1641232146651,31.98438551,171.13,171.06,2.52245885]
[1641232146855,31.98438551,171.13,171.06,2.26245885]
[1641232147253,31.72438551,171.13,171.06,2.26245885]
[1641232147654,4.31767374,171.16,171.06,2.26245885]
[1641232147856,22.6807,171.18,171.07,8.4]
[1641232148154,22.6807,171.18,171.08,24.2781]
[1641232148555,22.6807,171.18,171.09,1.2935]
[1641232148754,26.23509015,171.17,171.1,8.7657]
[1641232148955,26.23509015,171.17,171.09,1.5535]
[1641232149156,26.23509015,171.17,171.1,0.26]
[1641232149557,26.23509015,171.17,171.1,8.66]
[1641232149760,26.23509015,171.17,171.1,8.4]
[1641232149958,26.23509015,171.17,171.1,8.66]
[1641232150359,26.23509015,171.17,171.1,17.4262]
[1641232150559,26.23509015,171.17,171.1,9.0262]
[1641232152263,26.23509015,171.17,171.1,0.26]
[1641232152463,26.23509015,171.17,171.09,10.3202]
[1641232152865,35.00209015,171.17,171.09,10.3202]
[1641232153164,26.23509015,171.17,171.09,10.3202]
[1641232156084,26.23509015,171.17,171.09,13.3202]
[1641232161489,35.00209015,171.17,171.09,13.3202]
[1641232162894,26.23509015,171.17,171.09,13.3202]
[1641232168004,23.9251,171.18,171.09,13.3202]
[1641232170103,23.9251,171.18,171.1,8.4]
[1641232170307,23.9251,171.18,171.12,8.7653]
[1641232170508,23.9251,171.18,171.13,2.61695314]
[1641232170907,23.9251,171.18,171.13,2.87695314]
[1641232171105,23.9251,171.18,171.13,0.26]
[1641232171506,23.9251,171.18,171.09,3.0]
[1641232171705,24.4251,171.18,171.09,4.3206]
[1641232172105,24.6851,171.18,171.09,4.3206]
[1641232172737,33.4514,171.18,171.09,4.3206]
[1641232173137,33.4514,171.18,171.09,3.0]
[1641232173736,33.4514,171.18,171.09,3.26]
[1641232175338,33.4514,171.18,171.09,3.0]
[1641232175938,8.7693,171.13,171.09,3.0]
[1641232176138,29.60197327,171.12,171.09,3.0]
[1641232181444,8.7684,171.14,171.09,3.0]
[1641232181644,8.7684,171.14,171.09,3.26]
[1641232182745,10.1101,171.16,171.09,3.26]
[1641232183549,38.77529478,171.16,171.09,3.26]
[1641232183846,28.66519478,171.16,171.09,3.26]
[1641232184251,10.1004,171.17,171.09,3.26]
[1641232185250,27.80551036,171.16,171.09,12.0267]
[1641232186451,27.80551036,171.16,171.09,3.0]
[1641232186853,28.56551036,171.16,171.09,3.0]
[1641232188454,37.33301036,171.16,171.09,3.0]
[1641232199194,43.43522031,171.16,171.09,3.0]
[1641232202299,3.0510216,171.15,171.09,3.0]
[1641232202501,8.7689,171.14,171.09,3.0]
[1641232202899,9.5289,171.14,171.09,3.0]
[1641232207305,9.0289,171.14,171.09,3.0]
[1641232208509,9.5289,171.14,171.09,3.0]
[1641232215415,17.9289,171.14,171.09,3.0]
[1641232215617,17.9289,171.14,171.05,24.8449]
[1641232216417,19.2708,171.14,171.05,24.8449]
[1641232218921,19.0108,171.14,171.05,24.8449]
[1641232219121,9.2689,171.14,171.05,24.8449]
[1641232219321,0.5,171.14,171.05,25.1049]
[1641232219724,25.2616,171.15,171.05,25.1049]
[1641232219920,25.2616,171.15,171.05,33.8736]
[1641232220320,25.2616,171.15,171.06,1.2776]
[1641232220522,25.2616,171.15,171.06,1.5376]
[1641232221325,25.2616,171.15,171.07,8.7677]
[1641232221622,34.0297,171.15,171.07,9.0277]
[1641232222424,34.0297,171.15,171.07,0.26]
[1641232222622,34.0297,171.15,171.06,10.3059]
[1641232226149,9.2681,171.15,171.06,10.3059]
[1641232226951,9.2681,171.15,171.06,1.2776]
[1641232227549,9.5281,171.15,171.06,1.2776]
[1641232227750,24.8778,171.14,171.06,1.2776]
[1641232227949,8.7698,171.12,171.06,1.2776]
[1641232228549,8.7698,171.12,171.06,1.5376]
[1641232230552,25.3778,171.14,171.06,1.5376]
[1641232230755,8.769,171.13,171.06,1.5376]
[1641232231158,25.3778,171.14,171.06,1.5376]
[1641232231552,25.6378,171.14,171.06,1.5376]
[1641232232559,34.4062,171.14,171.06,10.306]
[1641232233355,34.1462,171.14,171.06,10.306]
[1641232233555,36.57331036,171.16,171.06,10.306]
[1641232233755,27.80551036,171.16,171.09,8.7668]
[1641232234057,27.80551036,171.16,171.09,0.26]
[1641232234355,27.80551036,171.16,171.1,2.19226249]
[1641232234556,27.80551036,171.16,171.1,2.45226249]
[1641232234957,27.80551036,171.16,171.1,11.21846249]
[1641232235758,27.80551036,171.16,171.1,2.45226249]
[1641232239868,27.80551036,171.16,171.1,0.26]
[1641232240068,36.57291036,171.16,171.09,0.26]
[1641232240566,36.57291036,171.16,171.08,1.5946]
[1641232242767,36.57291036,171.16,171.08,1.3346]
[1641232242968,36.83291036,171.16,171.08,1.3346]
[1641232243367,22.809,171.15,171.08,1.3346]
[1641232243569,8.7696,171.12,171.08,1.3346]
[1641232248872,8.7696,171.12,171.07,23.0591]
[1641232249872,8.7696,171.12,171.04,1.2317]
[1641232250073,9.5296,171.12,171.04,1.2317]
[1641232251973,23.1755,171.11,171.04,1.2317]
[1641232252174,25.84205996,171.07,171.04,1.2317]
[1641232252374,25.84205996,171.07,171.02,75.95638646]
[1641232252875,25.84205996,171.07,171.02,2.68538646]
[1641232257683,25.84205996,171.07,171.01,1.229]
[1641232257886,35.37395996,171.07,170.97,8.773]
[1641232258089,23.5588,171.06,170.98,1.3201]
[1641232258484,24.3188,171.06,170.98,1.3201]
[1641232258709,25.583,171.06,170.98,1.3201]
[1641232259507,25.583,171.06,170.97,22.966]
[1641232260411,8.7747,171.02,170.97,22.966]
[1641232260612,9.0347,171.02,170.96,1.2733]
[1641232263211,8.7747,171.02,170.96,1.2733]
[1641232263714,8.7739,171.03,170.96,1.5333]
[1641232264814,8.7739,171.03,170.96,1.2733]
[1641232266315,8.7739,171.03,170.96,1.5333]
[1641232266714,9.0339,171.03,170.96,1.5333]
[1641232267517,9.0339,171.03,170.96,1.2733]
[1641232267717,9.0339,171.03,170.95,23.0596]
[1641232268117,9.5339,171.03,170.95,23.0596]
[1641232268318,9.0339,171.03,170.95,23.0596]
[1641232268520,9.0339,171.03,170.96,2.62818371]
[1641232268921,0.76,171.03,170.96,2.62818371]
[1641232269120,0.5,171.03,170.97,1.3503]
[1641232269320,10.318,171.05,170.97,1.3503]
[1641232269523,10.818,171.05,170.97,1.3503]
[1641232269720,23.6105,171.04,170.97,3.666286]
[1641232270019,24.3705,171.04,170.97,3.666286]
[1641232270422,33.1441,171.04,170.97,3.666286]
[1641232271321,33.1441,171.04,170.97,2.315986]
[1641232278031,41.5441,171.04,170.97,2.315986]
[1641232278331,8.7777,170.96,170.89,23.2196]
[1641232278531,24.58995858,170.95,170.9,1.2932]
[1641232279335,24.58995858,170.95,170.9,4.21629759]
[1641232279534,25.08995858,170.95,170.9,4.21629759]
[1641232279734,24.58995858,170.95,170.9,4.21629759]
[1641232286568,24.58995858,170.95,170.9,4.47629759]
[1641232288568,24.58995858,170.95,170.9,13.25269759]
[1641232289471,24.58995858,170.95,170.9,12.99269759]
[1641232290475,31.5321,171.0,170.9,12.99269759]
[1641232290772,75.2155,171.07,170.91,8.4]
[1641232290973,25.2852,171.06,170.95,8.7737]
[1641232291172,25.2852,171.06,170.96,2.81672221]
[1641232291572,23.6576372,171.05,170.96,3.07672221]
[1641232291772,23.6576372,171.05,170.97,1.2393]
[1641232291974,23.6576372,171.05,170.97,10.2717]
[1641232292173,24.1576372,171.05,170.97,10.2717]
[1641232292377,24.4176372,171.05,170.97,10.2717]
[1641232294674,23.9176372,171.05,170.97,10.2717]
[1641232294875,23.6576372,171.05,170.97,10.2717]
[1641232297482,32.4305372,171.05,170.97,10.2717]
[1641232299782,23.6576372,171.05,170.97,10.2717]
[1641232300983,32.4306372,171.05,170.97,10.2717]
[1641232301184,32.4306372,171.05,170.97,1.4993]
[1641232303487,24.3157,171.04,170.95,23.393]
[1641232303724,8.7755,171.0,170.93,1.2871]
[1641232304090,9.0355,171.0,170.93,1.2871]
[1641232304286,9.5355,171.0,170.93,1.2871]
[1641232304487,9.5355,171.0,170.9,8.7765]
[1641232304693,9.5355,171.0,170.89,1.311]
[1641232304887,8.7777,170.96,170.89,1.311]
[1641232305289,0.5,170.96,170.89,1.311]
[1641232305488,23.8801,170.97,170.89,1.311]
[1641232305687,23.8801,170.97,170.9,2.26745845]
[1641232305890,32.657,170.97,170.9,2.26745845]
[1641232306089,32.657,170.97,170.9,2.52745845]
[1641232306587,32.657,170.97,170.9,0.26]
[1641232306989,32.657,170.97,170.89,10.3476]
[1641232309796,32.657,170.97,170.89,10.0876]
[1641232309998,32.917,170.97,170.89,10.0876]
[1641232312022,23.70108493,170.98,170.89,10.3476]
[1641232312223,1.2322,171.03,170.9,8.4]
[1641232312423,24.0907,171.03,170.94,8.7744]
[1641232312623,24.0907,171.03,170.94,11.43362327]
[1641232312823,24.0907,171.03,170.94,11.69362327]
[1641232313225,25.39221672,171.02,170.94,11.69362327]
[1641232313825,25.39221672,171.02,170.94,12.92592327]
[1641232315927,25.39221672,171.02,170.94,12.66592327]
[1641232317428,25.39221672,171.02,170.94,12.92592327]
[1641232332042,24.4161,171.08,170.94,12.92592327]
[1641232332244,1.2587,171.07,170.95,24.6139]
[1641232332544,1.64890715,171.13,171.02,2.53023573]
[1641232332743,24.2102,171.14,171.02,9.05023573]
[1641232332943,24.2102,171.14,171.03,1.2296]
[1641232333145,24.87709567,171.13,171.03,1.2296]
[1641232333345,24.87709567,171.13,171.03,1.4896]
[1641232333544,26.21059567,171.13,171.05,8.7689]
[1641232333946,26.21059567,171.13,171.05,9.0289]
[1641232334544,34.97969567,171.13,171.05,9.0289]
[1641232334747,26.21059567,171.13,171.05,9.0289]
[1641232336946,24.87709567,171.13,171.05,9.0289]
[1641232337773,24.87709567,171.13,171.05,17.4289]
[1641232338375,24.87709567,171.13,171.05,8.66]
[1641232338777,24.87709567,171.13,171.05,0.26]
[1641232338975,26.30378935,171.13,171.04,9.0293]
[1641232339375,35.07288935,171.13,171.04,0.26]
[1641232339577,35.07288935,171.13,171.01,74.4144]
[1641232339776,25.5719,171.12,170.99,1.2777]
[1641232339975,26.3319,171.12,170.99,1.2777]
[1641232340176,1.42669368,171.11,170.99,1.2777]
[1641232340376,1.92669368,171.11,170.99,24.6446]
[1641232340575,2.18669368,171.11,171.0,3.00749586]
[1641232340776,2.18669368,171.11,171.0,11.77879586]
[1641232340977,24.69609368,171.1,171.0,12.03879586]
[1641232341378,24.95609368,171.1,171.0,12.03879586]
[1641232341780,23.5294,171.1,171.0,12.03879586]
[1641232342377,8.7712,171.09,171.0,12.03879586]
[1641232342579,9.0312,171.09,171.0,12.03879586]
[1641232343878,1.584,171.09,171.0,12.03879586]
[1641232345082,1.584,171.09,171.01,10.0478]
[1641232345581,1.584,171.09,171.01,10.3078]
[1641232346582,1.324,171.09,171.01,10.3078]
[1641232346786,0.5,171.11,171.01,10.3078]
[1641232346983,24.87709567,171.13,171.01,18.7078]
[1641232348185,24.87709567,171.13,171.02,24.9403]
[1641232348385,24.87709567,171.13,171.05,8.7685]
[1641232348585,24.87709567,171.13,171.05,9.0285]
[1641232348986,24.87709567,171.13,171.06,2.673877]
[1641232349387,24.87709567,171.13,171.06,2.933877]
[1641232350386,24.87709567,171.13,171.06,11.702277]
[1641232350987,24.87709567,171.13,171.06,9.0284]
[1641232351385,33.64609567,171.13,171.06,0.26]
[1641232351586,33.64609567,171.13,171.04,8.7693]
[1641232351786,33.64609567,171.13,171.03,1.5309]
[1641232352387,33.64609567,171.13,171.03,4.42465127]
[1641232352789,34.98629567,171.13,171.03,4.42465127]
[1641232353494,34.98629567,171.13,171.03,13.19455127]
[1641232355996,24.5245,171.12,171.03,13.19455127]
[1641232356221,33.2941,171.12,171.03,13.19455127]
[1641232357996,33.2941,171.12,171.03,10.3008]
[1641232358198,34.72079368,171.12,171.03,1.5309]
[1641232358597,34.72079368,171.12,171.03,1.2709]
[1641232358798,34.98079368,171.12,171.03,1.2709]
[1641232359000,35.48079368,171.12,171.03,4.1725694]
[1641232359500,36.83919368,171.12,171.03,4.1725694]
[1641232360507,36.83919368,171.12,171.0,87.2305]
[1641232360709,45.23919368,171.12,170.99,1.3431]
[1641232361706,45.23919368,171.12,171.0,2.5971275]
[1641232363007,8.7741,171.06,171.0,2.5971275]
[1641232363208,27.15014133,171.05,170.99,1.3431]
[1641232363827,27.41014133,171.05,170.96,1.3113]
[1641232364230,8.7744,171.03,170.96,2.3125463]
[1641232364629,9.0344,171.03,170.96,2.3125463]